fUST/lending_fUST_20260306
["ID","MTS","AMOUNT","RATE_DAILY","PERIOD"]
[407765224,1772777446291,-11620.13040283,4.173e-05,2]
[407765377,1772778632303,-290.0,3.447e-05,2]
[407765379,1772778632312,-290.0,3.482e-05,2]
[407765381,1772778632321,-290.0,3.517e-05,2]
[407765383,1772778632330,-245.00177373,3.535e-05,2]
[407765385,1772778632339,-290.0,3.852e-05,2]
[407765387,1772778632348,-500.0,3.853e-05,2]
[407765389,1772778632357,-500.0,3.853e-05,2]
[407765391,1772778632366,-277.32902031,3.853e-05,2]
[407765393,1772778632378,-222.67097969,3.853e-05,2]
[407765395,1772778632387,-500.0,3.853e-05,2]
[407765397,1772778632395,-500.0,3.853e-05,2]
[407765399,1772778632407,-211.89633785,3.853e-05,2]
[407765401,1772778632416,-500.0,3.853e-05,2]
[407765403,1772778632425,-500.0,3.853e-05,2]
[407765405,1772778632434,-500.0,3.853e-05,2]
[407765407,1772778632444,-500.0,3.853e-05,2]
[407765409,1772778632453,-500.0,3.853e-05,2]
[407765411,1772778632462,-511.71061417,3.853e-05,2]
[407765413,1772778632471,-500.0,3.853e-05,2]
[407765415,1772778632481,-500.0,3.853e-05,2]
[407765417,1772778632490,-500.0,3.853e-05,2]
[407765419,1772778632499,-500.0,3.853e-05,2]
[407765421,1772778632509,-500.0,3.853e-05,2]
[407765423,1772778632518,-500.0,3.853e-05,2]
[407765425,1772778632527,-1040.70642599,3.873e-05,2]
[407765997,1772778638491,-16683.69392733,3.834e-05,2]
[407766228,1772778646908,-1874.65562877,3.796e-05,2]
[407766229,1772778646919,-1770.36296707,3.796e-05,2]
[407766353,1772779832653,-174.0,2.9e-07,2]
[407766355,1772779832662,-174.0,2.9e-07,2]
[407766357,1772779832671,-174.0,2.9e-07,2]
[407766359,1772779832681,-174.0,2.9e-07,2]
[407766361,1772779832690,-696.0,2.9e-07,2]
[407766363,1772779832701,-696.0,2.9e-07,2]
[407766365,1772779832710,-696.0,2.9e-07,2]
[407766367,1772779832720,-240.10173826,3.58e-06,2]
[407766369,1772779832729,-168.02,3.8e-06,2]
[407766371,1772779832739,-168.02,3.8e-06,2]
[407766373,1772779832748,-255.0,2.353e-05,2]
[407766375,1772779832758,-300.0,2.353e-05,2]
[407766377,1772779832767,-286.0,2.355e-05,2]
[407766379,1772779832776,-283.32005114,2.358e-05,2]
[407766381,1772779832785,-190.493568,3.185e-05,2]
[407766383,1772779832795,-190.493568,3.408e-05,2]
[407766385,1772779832804,-347.04737124,3.5e-05,2]
[407766387,1772779832814,-716.24854253,3.5e-05,2]
[407766389,1772779832824,-746.3811548,3.5e-05,2]
[407766391,1772779832833,-653.38302975,3.5e-05,2]
[407766393,1772779832842,-500.0,3.593e-05,2]
[407766395,1772779832851,-500.0,3.593e-05,2]
[407766397,1772779832860,-500.0,3.593e-05,2]
[407766399,1772779832869,-500.0,3.593e-05,2]
[407766400,1772779832879,-108.09736,3.593e-05,2]
[407766416,1772779838615,-10170.52510616,3.557e-05,2]
[407766418,1772779838624,-391.90264,3.593e-05,2]
[407766420,1772779838633,-500.0,3.593e-05,2]
[407766422,1772779838643,-500.0,3.593e-05,2]
[407766424,1772779838652,-500.0,3.593e-05,2]
[407766426,1772779838662,-500.0,3.593e-05,2]
[407766428,1772779838671,-500.0,3.593e-05,2]
[407766430,1772779838681,-500.0,3.593e-05,2]
[407766432,1772779838691,-500.0,3.593e-05,2]
[407766434,1772779838701,-438.97255741,3.593e-05,2]
[407766436,1772779838713,-61.02744259,3.593e-05,2]
[407766438,1772779838723,-500.0,3.593e-05,2]
[407766440,1772779838732,-500.0,3.593e-05,2]
[407766442,1772779838742,-500.0,3.593e-05,2]
[407766444,1772779838751,-500.0,3.593e-05,2]
[407766446,1772779838761,-500.0,3.593e-05,2]
[407766448,1772779838770,-500.0,3.593e-05,2]
[407766450,1772779838779,-155.60699957,3.593e-05,2]
[407766452,1772779838789,-500.0,3.593e-05,2]
[407766454,1772779838798,-500.0,3.593e-05,2]
[407766456,1772779838808,-623.01546659,3.593e-05,2]
[407766458,1772779838817,-500.0,3.593e-05,2]
[407766460,1772779838827,-500.0,3.593e-05,2]
[407766462,1772779838836,-14173.19609553,3.613e-05,2]
[407766464,1772779838848,-3570.83799964,3.613e-05,2]
[407766669,1772779841104,-1149.65456705,3.613e-05,2]
[407766842,1772779846147,-793.3533915,3.613e-05,2]
[407766843,1772779846163,-11074.39,3.613e-05,2]
[407766845,1772779846221,-287.5135445,3.613e-05,2]
[407766847,1772779846233,-2149.33,3.613e-05,2]
[407766849,1772779846503,-494.293216,3.576e-05,2]
[407766850,1772779846515,-281.58,3.576e-05,2]
[407766851,1772779846565,-515.45930201,3.576e-05,2]
[407766852,1772779846574,-29646.68579973,3.613e-05,2]
[407766853,1772779846585,-8585.70824156,3.613e-05,2]
[407766854,1772779846627,-13197.75447007,3.613e-05,2]
[407766911,1772781031690,-235.23,3.72e-06,2]
[407766912,1772781031699,-235.23,3.76e-06,2]
[407766913,1772781031709,-235.23,3.8e-06,2]
[407766914,1772781031718,-244.85478162,3.181e-05,2]
[407766915,1772781031728,-174.39653374,3.5e-05,2]
[407766916,1772781031738,-68.01299605,3.5e-05,2]
[407766944,1772781037744,-235.23,3.68e-06,2]
[407766946,1772781037754,-158.93219821,3.5e-05,2]
[407766948,1772781037763,-212.96699663,3.5e-05,2]
[407766950,1772781037772,-221.4258119,3.5e-05,2]
[407766951,1772781037780,-300.0,3.591e-05,2]
[407766953,1772781037790,-2288.10675946,3.592e-05,2]
[407766962,1772781037860,-317.96272121,3.592e-05,2]
[407767156,1772781040250,-1000.0,3.592e-05,2]
[407767158,1772781040261,-7080.3,3.592e-05,2]
[407767164,1772781040312,-6.96883123,3.592e-05,2]
[407767167,1772781040323,-257.7697,3.592e-05,2]
[407767169,1772781040332,-190.493568,3.631e-05,2]
[407767171,1772781040348,-190.493568,3.855e-05,2]
[407767173,1772781040357,-257.7697,4.003e-05,2]
[407767175,1772781040366,-187.87302024,4.051e-05,2]
[407767411,1772781042822,-1104.68933594,4.011e-05,2]
[407767412,1772781042834,-1093.44393382,4.011e-05,2]
[407767413,1772781042844,-1797.11802414,4.051e-05,2]
[407767414,1772781042936,-284.64068081,4.051e-05,2]
[407767415,1772781042948,-116.37456481,4.051e-05,2]
[407767416,1772781042958,-151.0,4.141e-05,2]
[407767417,1772781042967,-151.0,4.141e-05,2]
[407767418,1772781042976,-161.550679,4.141e-05,2]
[407767419,1772781042986,-151.0,4.141e-05,2]
[407767420,1772781042995,-151.0,4.141e-05,2]
[407767422,1772781043004,-532.3899656,4.154e-05,2]
[407767424,1772781043013,-257.7697,4.415e-05,2]
[407767425,1772781043023,-166.18056224,4.576e-05,2]
[407767426,1772781043032,-1988.97088552,4.576e-05,2]
[407767427,1772781043042,-1611.76675584,4.576e-05,2]
[407767428,1772781043054,-500.0,4.576e-05,2]
[407767452,1772781045705,-38.97124416,4.576e-05,2]
[407767453,1772781045715,-151.0,4.688e-05,2]
[407767454,1772781045725,-151.0,4.688e-05,2]
[407767455,1772781045734,-151.0,4.688e-05,2]
[407767456,1772781045743,-151.0,4.688e-05,2]
[407767457,1772781045752,-43.87682145,4.688e-05,2]
[407767458,1772781045820,-107.12317855,4.688e-05,2]
[407767459,1772781045829,-151.0,4.688e-05,2]
[407767460,1772781045839,-151.0,4.688e-05,2]
[407767461,1772781045848,-114.87682145,4.688e-05,2]
[407767464,1772781121203,-181.45958855,4.595e-05,2]
[407767465,1772781121228,-181.45958855,4.641e-05,2]
[407767466,1772781121254,-181.45958855,4.688e-05,2]
[407767467,1772781121274,-731.0,4.703e-05,2]
[407767468,1772781121295,-377.572,4.703e-05,2]
[407767469,1772781121316,-500.0,4.725e-05,2]
[407767470,1772781121337,-500.0,4.725e-05,2]
[407767471,1772781121358,-500.0,4.725e-05,2]
[407767472,1772781121379,-500.0,4.725e-05,2]
[407767473,1772781121400,-500.0,4.725e-05,2]
[407767474,1772781121421,-500.0,4.725e-05,2]
[407767475,1772781121442,-500.0,4.725e-05,2]
[407767476,1772781121467,-500.0,4.725e-05,2]
[407767477,1772781121488,-500.0,4.725e-05,2]
[407767478,1772781121509,-500.0,4.725e-05,2]
[407767479,1772781121530,-500.0,4.725e-05,2]
[407767480,1772781121558,-162.380719,4.725e-05,2]
[407767481,1772781121579,-500.0,4.725e-05,2]
[407767482,1772781121602,-168.3888056,4.725e-05,2]
[407767483,1772781121623,-500.0,4.725e-05,2]
[407767484,1772781121646,-174.61919141,4.725e-05,2]
[407767485,1772781121668,-500.0,4.725e-05,2]
[407767486,1772781121690,-500.0,4.725e-05,2]
[407767487,1772781121712,-341.66051834,4.725e-05,2]
[407767488,1772781123541,-158.33948166,4.725e-05,2]
[407767489,1772781123567,-500.0,4.725e-05,2]
[407767490,1772781123590,-500.0,4.725e-05,2]
[407767491,1772781123614,-181.08010149,4.725e-05,2]
[407767492,1772781123638,-187.78006525,4.725e-05,2]
[407767493,1772781123661,-250.0,4.725e-05,2]
[407767494,1772781123687,-194.72792766,4.725e-05,2]
[407767495,1772781123707,-250.0,4.725e-05,2]
[407767496,1772781123730,-201.93286099,4.725e-05,2]
[407767497,1772781123750,-250.0,4.725e-05,2]
[407767498,1772781123771,-250.0,4.725e-05,2]
[407767499,1772781123791,-398.72272518,4.725e-05,2]
[407767500,1772781123813,-209.40437684,4.725e-05,2]
[407767501,1772781123834,-250.0,4.725e-05,2]
[407767502,1772781123856,-217.15233878,4.725e-05,2]
[407767503,1772781123877,-250.0,4.725e-05,2]
[407767504,1772781123899,-225.18697532,4.725e-05,2]
[407767505,1772781123920,-250.0,4.725e-05,2]
[407767506,1772781123939,-250.0,4.725e-05,2]
[407767507,1772781123961,-233.51889341,4.725e-05,2]
[407767508,1772781123982,-242.15909246,4.725e-05,2]
[407767509,1772781124002,-250.0,4.725e-05,2]
[407767510,1772781124022,-250.0,4.725e-05,2]
[407767511,1772781124042,-250.0,4.725e-05,2]
[407767512,1772781124064,-251.11897888,4.725e-05,2]
[407767513,1772781124084,-250.0,4.725e-05,2]
[407767514,1772781124104,-250.0,4.725e-05,2]
[407767515,1772781124124,-250.0,4.725e-05,2]
[407767516,1772781124145,-250.0,4.725e-05,2]
[407767517,1772781124167,-260.4103811,4.725e-05,2]
[407767518,1772781124188,-250.0,4.725e-05,2]
[407767519,1772781124209,-250.0,4.725e-05,2]
[407767520,1772781124230,-250.0,4.725e-05,2]
[407767521,1772781124253,-270.0455652,4.725e-05,2]
[407767522,1772781124274,-250.0,4.725e-05,2]
[407767523,1772781124296,-250.0,4.725e-05,2]
[407767524,1772781124319,-280.03725112,4.725e-05,2]
[407767525,1772781124339,-250.0,4.725e-05,2]
[407767526,1772781124369,-238.38298466,4.725e-05,2]
[407767527,1772781131526,-3139.49710949,4.678e-05,2]
[407767528,1772781131551,-11.61701534,4.725e-05,2]
[407767529,1772781131572,-250.0,4.725e-05,2]
[407767530,1772781131595,-290.39862941,4.725e-05,2]
[407767531,1772781131615,-250.0,4.725e-05,2]
[407767532,1772781131635,-250.0,4.725e-05,2]
[407767533,1772781131655,-250.0,4.725e-05,2]
[407767534,1772781131675,-250.0,4.725e-05,2]
[407767535,1772781131696,-250.0,4.725e-05,2]
[407767536,1772781131719,-301.1433787,4.725e-05,2]
[407767537,1772781131739,-250.0,4.725e-05,2]
[407767538,1772781131758,-248.65358604,4.725e-05,2]
[407767539,1772781131777,-537.6845,4.725e-05,2]
[407767540,1772781131797,-151.0,4.728e-05,2]
[407767541,1772781131816,-151.0,4.728e-05,2]
[407767542,1772781131836,-257.7697,4.826e-05,2]
[407767546,1772781144817,3161.23608102,4.999e-05,2]
[407767547,1772781151137,-1838.76391898,4.999e-05,2]
[407767548,1772781152680,1748.42321719,4.999e-05,2]
[407767549,1772781171875,-2767.9827549,4.678e-05,2]
[407767550,1772781171898,-2767.9827549,4.725e-05,2]
[407767551,1772781171922,-239.95768599,5e-05,2]
[407767552,1772781171945,-227.57,5e-05,2]
[407767553,1772781171968,-150.21,5e-05,2]
[407767554,1772781171991,-173.76,5e-05,2]
[407767555,1772781172013,-500.0,5e-05,2]
[407767556,1772781172035,-150.17,5e-05,2]
[407767557,1772781172056,-158.92,5e-05,2]
[407767558,1772781172080,-158.92,5e-05,2]
[407767559,1772781172101,-183.86,5e-05,2]
[407767560,1772781172121,-175.50984309,5e-05,2]
[407767561,1772781172143,-166.37,5e-05,2]
[407767584,1772781226201,-2150.738,4.675e-05,2]
[407767585,1772781226224,-2150.738,4.722e-05,2]
[407767586,1772781226246,-500.0,4.725e-05,2]
[407767587,1772781226267,-500.0,4.725e-05,2]
[407767588,1772781226288,-198.524,4.725e-05,2]
[407767589,1772781298600,-1753.60715972,4.678e-05,2]
[407767590,1772781298627,-301.476,4.725e-05,2]
[407767591,1772781298652,-162.380719,4.725e-05,2]
[407767592,1772781298674,-500.0,4.725e-05,2]
[407767593,1772781298699,-168.3888056,4.725e-05,2]
[407767594,1772781298722,-500.0,4.725e-05,2]
[407767595,1772781298744,-174.61919141,4.725e-05,2]
[407767596,1772781298765,-500.0,4.725e-05,2]
[407767597,1772781298786,-181.08010149,4.725e-05,2]
[407767598,1772781298807,-500.0,4.725e-05,2]
[407767599,1772781298830,-187.78006525,4.725e-05,2]
[407767600,1772781298851,-500.0,4.725e-05,2]
[407767601,1772781298872,-194.72792766,4.725e-05,2]
[407767602,1772781298892,-500.0,4.725e-05,2]
[407767603,1772781298913,-500.0,4.725e-05,2]
[407767604,1772781298936,-201.93286099,4.725e-05,2]
[407767605,1772781298957,-374.00716888,4.725e-05,2]
[407767659,1772782232346,-272.0,3.199e-05,2]
[407767661,1772782232356,-300.0,3.199e-05,2]
[407767663,1772782232366,-1200.0,3.199e-05,2]
[407767665,1772782232376,-300.0,3.519e-05,2]
[407767666,1772782232386,-185.036216,3.723e-05,2]
[407767667,1772782232396,-96.91951249,3.761e-05,2]
[407767668,1772782232407,-88.11670351,3.761e-05,2]
[407767669,1772782232418,-240.26732081,3.78e-05,2]
[407767670,1772782232428,-185.036216,3.799e-05,2]
[407767671,1772782232439,-185.036216,3.955e-05,2]
[407767672,1772782232449,-185.036216,4.371e-05,2]
[407767673,1772782232460,-208.99093517,4.495e-05,2]
[407767674,1772782232471,-160.33528781,4.503e-05,2]
[407767906,1772782241544,-296.21342754,4.458e-05,2]
[407767943,1772782245877,-7457.13307508,4.413e-05,2]
[407767944,1772782245886,-3678.18173007,4.458e-05,2]
[407767945,1772782245970,-353.585,4.458e-05,2]
[407767946,1772782245991,-3298.8864978,4.458e-05,2]
[407767956,1772782653072,181.40308156,1e-05,3]
[407767957,1772782669957,208.6958861,1e-05,3]
[407767958,1772782681105,181.40308156,1e-05,3]
[407767959,1772782742638,208.6958861,1e-05,3]
[407767960,1772782752684,181.40308156,1e-05,3]
[407767961,1772782764482,208.6958861,1e-05,3]
[407767962,1772782775900,208.6958861,1e-05,3]
[407767963,1772782786861,181.40308156,1e-05,3]
[407767964,1772782797803,181.40308156,1e-05,3]
[407767965,1772782831905,208.69588608,1e-05,3]
[407767966,1772782843302,181.40308156,1e-05,3]
[407767980,1772783168590,16925.02860847,3.5e-06,60]
[407767992,1772783314565,168.88,1e-05,3]
[407768038,1772783438076,-164.66,3.39e-06,2]
[407768040,1772783438086,-164.66,3.42e-06,2]
[407768042,1772783438095,-164.66,3.45e-06,2]
[407768044,1772783438104,-250.64524063,3.5e-06,2]
[407768045,1772783438118,-164.66,3.8e-06,2]
[407768046,1772783438127,-78.34305338,1.651e-05,2]
[407768047,1772783438139,-488.33915892,1.651e-05,2]
[407768048,1772783438148,-295.76138394,2.35e-05,2]
[407768049,1772783438158,-300.0,4.232e-05,2]
[407768050,1772783438167,-500.0,4.233e-05,2]
[407768051,1772783438176,-500.0,4.233e-05,2]
[407768052,1772783438187,-500.0,4.233e-05,2]
[407768053,1772783438196,-500.0,4.233e-05,2]
[407768054,1772783438207,-500.0,4.233e-05,2]
[407768055,1772783438216,-500.0,4.233e-05,2]
[407768056,1772783438225,-500.0,4.233e-05,2]
[407768057,1772783438234,-500.0,4.233e-05,2]
[407768058,1772783438244,-500.0,4.233e-05,2]
[407768059,1772783438253,-500.0,4.233e-05,2]
[407768060,1772783438262,-500.0,4.233e-05,2]
[407768061,1772783438272,-500.0,4.233e-05,2]
[407768062,1772783438280,-500.0,4.233e-05,2]
[407768063,1772783438289,-500.0,4.233e-05,2]
[407768064,1772783438298,-500.12413631,4.233e-05,2]
[407768065,1772783438307,-500.0,4.233e-05,2]
[407768066,1772783438316,-500.0,4.233e-05,2]
[407768067,1772783438326,-500.0,4.233e-05,2]
[407768068,1772783438336,-500.0,4.233e-05,2]
[407768069,1772783438345,-500.0,4.233e-05,2]
[407768070,1772783438354,-500.0,4.233e-05,2]
[407768071,1772783438363,-500.0,4.233e-05,2]
[407768072,1772783438372,-500.0,4.233e-05,2]
[407768073,1772783438380,-500.0,4.233e-05,2]
[407768074,1772783438389,-500.0,4.233e-05,2]
[407768075,1772783438398,-178.20075841,4.233e-05,2]
[407768076,1772783438409,-321.79924159,4.233e-05,2]
[407768077,1772783438418,-500.0,4.233e-05,2]
[407768078,1772783438428,-500.0,4.233e-05,2]
[407768080,1772783438437,-7296.92691594,4.258e-05,2]
[407768082,1772783438449,-1677.61615989,4.258e-05,2]
[407768085,1772783438465,-8152.0700599,4.258e-05,2]
[407768296,1772783440502,-7378.54934401,4.258e-05,2]
[407768298,1772783440514,-31649.22909771,4.258e-05,2]
[407768300,1772783440526,-975.0,4.258e-05,2]
[407768481,1772783444750,-1050.51411143,4.216e-05,2]
[407768482,1772783444795,-4000.0,4.216e-05,2]
[407768489,1772783446091,-2609.72935896,4.216e-05,2]
[407768490,1772783446103,-7471.36944491,4.216e-05,2]
[407769515,1772783619051,5463.07214266,1e-05,30]
[407769516,1772783620707,10700.56,1e-05,120]
[407769517,1772783621068,10700.56,1.05e-05,120]
[407769518,1772783621489,10700.56,1.1e-05,120]
[407769519,1772783622601,10700.55394557,1.2e-05,120]
[407769520,1772783631363,21589.4,3.43e-05,120]
[407769521,1772783631740,21589.4,3.601e-05,120]
[407769522,1772783632164,21589.4,3.773e-05,120]
[407769523,1772783632543,21589.4,4.116e-05,120]
[407769524,1772783637515,21589.4,3.43e-05,120]
[407769525,1772783637921,21589.4,3.601e-05,120]
[407769526,1772783638253,21589.4,3.773e-05,120]
[407769527,1772783638600,21589.4,4.116e-05,120]
[407769528,1772783648669,9499.34,3.43e-05,120]
[407769529,1772783649274,9499.34,3.601e-05,120]
[407769530,1772783649659,9499.34,3.773e-05,120]
[407769531,1772783650007,9499.34,4.116e-05,120]
[407769532,1772783659954,6839.52,3.43e-05,120]
[407769533,1772783660500,6839.52,3.601e-05,120]
[407769534,1772783662506,6839.52,3.773e-05,120]
[407769535,1772783662535,6839.52,4.116e-05,120]
[407769536,1772783672458,4924.46,3.43e-05,120]
[407769537,1772783673822,4924.46,3.601e-05,120]
[407769538,1772783673854,4924.46,3.773e-05,120]
[407769539,1772783673883,4924.45694456,4.116e-05,120]
[407769540,1772783684496,3545.61,3.43e-05,120]
[407769541,1772783684898,3545.61,3.601e-05,120]
[407769542,1772783685278,3545.61,3.773e-05,120]
[407769543,1772783685866,3545.60108337,4.116e-05,120]
[407769544,1772783696022,2552.84,3.43e-05,120]
[407769545,1772783696386,2552.84,3.601e-05,120]
[407769546,1772783696787,2552.84,3.773e-05,120]
[407769547,1772783697139,2552.80932501,4.116e-05,120]
[407770301,1772784632110,-300.0,2.92e-05,2]
[407770303,1772784632120,-300.0,2.949e-05,2]
[407770305,1772784632130,-300.0,2.979e-05,2]
[407770307,1772784632140,-249.43905169,3.117e-05,2]
[407770309,1772784632150,-300.0,3.992e-05,2]
[407770311,1772784632160,-500.0,3.993e-05,2]
[407770313,1772784632170,-500.0,3.993e-05,2]
[407770314,1772784632179,-500.0,3.993e-05,2]
[407770315,1772784632189,-500.0,3.993e-05,2]
[407770316,1772784632199,-500.0,3.993e-05,2]
[407770317,1772784632209,-542.73931743,3.993e-05,2]
[407770318,1772784632219,-277.54582243,3.993e-05,2]
[407770337,1772784638279,-300.0,2.891e-05,2]
[407770338,1772784638289,-222.45417757,3.993e-05,2]
[407770339,1772784638300,-231.38502014,3.993e-05,2]
[407770340,1772784638310,-132.16080229,3.993e-05,2]
[407770341,1772784638336,-367.83919771,3.993e-05,2]
[407770342,1772784638347,-500.0,3.993e-05,2]
[407770343,1772784638360,-500.0,3.993e-05,2]
[407770344,1772784638370,-500.0,3.993e-05,2]
[407770345,1772784638379,-500.0,3.993e-05,2]
[407770346,1772784638389,-157.52723232,3.993e-05,2]
[407770347,1772784638401,-253.19172798,3.993e-05,2]
[407770383,1772784640865,-4672.2388409,3.976e-05,2]
[407770390,1772784640922,-380.36253887,3.976e-05,2]
[407770392,1772784640933,-1719.26634701,3.976e-05,2]
[407770735,1772784646051,-4190.30275671,3.936e-05,2]
[407770736,1772784646061,-409.2870923,3.976e-05,2]
[407770737,1772784646089,-2509.34647797,3.976e-05,2]
[407770738,1772784646218,-24582.92502933,3.976e-05,2]
[407770740,1772784646244,-7755.69440418,3.976e-05,2]
[407770742,1772784646256,-13497.44423197,3.976e-05,2]
[407770744,1772784646266,-89.2810397,3.993e-05,2]
[407770746,1772784646276,-500.0,3.993e-05,2]
[407770748,1772784646285,-500.0,3.993e-05,2]
[407770749,1772784646295,-500.0,3.993e-05,2]
[407770751,1772784646305,-500.0,3.993e-05,2]
[407770753,1772784646315,-500.0,3.993e-05,2]
[407770755,1772784646325,-500.0,3.993e-05,2]
[407770757,1772784646335,-500.0,3.993e-05,2]
[407770759,1772784646345,-500.0,3.993e-05,2]
[407770760,1772784646355,-559.1807585,4e-05,2]
[407770762,1772784646364,-1133.15044267,4e-05,2]
[407770764,1772784646374,-1256.94878291,4e-05,2]
[407770766,1772784646383,-1384.94370907,4e-05,2]
[407770768,1772784646393,-17064.5959575,4.016e-05,2]
[407770777,1772784647022,-1122.49014395,4.016e-05,2]
[407770778,1772784812001,-253.4355614,2.827e-05,2]
[407770779,1772784812023,-300.0,3.799e-05,2]
[407770780,1772784812046,-1446.5644386,3.8e-05,2]
[407770781,1772784813833,-127.95902349,3.8e-05,2]
[407770782,1772784813857,-1872.04097651,3.8e-05,2]
[407770784,1772784814893,-1796.94459753,3.8e-05,2]
[407770785,1772784814914,-203.05540247,3.8e-05,2]
[407770786,1772784815836,-2000.0,3.8e-05,2]
[407770787,1772784816264,-1123.44428414,3.8e-05,2]
[407770788,1772784816288,-876.55571586,3.8e-05,2]
[407770789,1772784817054,-2000.0,3.8e-05,2]
[407770790,1772784817488,-974.60026253,3.8e-05,2]
[407770791,1772784817513,-1025.39973747,3.8e-05,2]
[407770792,1772784817914,-2000.0,3.8e-05,2]
[407770793,1772784818348,-986.07172406,3.8e-05,2]
[407770794,1772784818376,-1013.92827594,3.916e-05,2]
[407770795,1772784818656,-2000.0,3.916e-05,2]
[407770796,1772784818958,-2000.0,3.916e-05,2]
[407770797,1772784819274,-2000.0,3.916e-05,2]
[407770798,1772784819598,-2000.0,3.916e-05,2]
[407770799,1772784819921,-2000.0,3.916e-05,2]
[407770800,1772784820248,-2000.0,3.916e-05,2]
[407770801,1772784820569,-2000.0,3.916e-05,2]
[407770802,1772784820984,-2000.0,3.916e-05,2]
[407770803,1772784821500,-2000.0,3.916e-05,2]
[407770804,1772784822904,-2000.0,3.916e-05,2]
[407770805,1772784822954,-2000.0,3.916e-05,2]
[407770806,1772784822981,-2000.0,3.916e-05,2]
[407770807,1772784823019,-2000.0,3.916e-05,2]
[407770808,1772784823068,-2000.0,3.916e-05,2]
[407770809,1772784832124,-2000.0,3.916e-05,2]
[407770810,1772784832607,-2000.0,3.916e-05,2]
[407770811,1772784833874,-2000.0,3.916e-05,2]
[407770812,1772784833910,-2000.0,3.916e-05,2]
[407770813,1772784834448,-2000.0,3.916e-05,2]
[407770814,1772784834879,-2000.0,3.916e-05,2]
[407770815,1772784835291,-2000.0,3.916e-05,2]
[407770816,1772784837727,-2000.0,3.916e-05,2]
[407770817,1772784843700,-800.0,3.877e-05,2]
[407770826,1772785236489,-151.0,7.139e-05,30]
[407770827,1772785237444,-151.0,7.139e-05,30]
[407770828,1772785238609,-32.19,7.139e-05,30]
[407770829,1772785238636,-118.81,7.575e-05,30]
[407770830,1772785241105,-151.0,7.575e-05,30]
[407770831,1772785242104,-151.0,7.575e-05,30]
[407770870,1772785832439,-158.294575,2.859e-05,2]
[407770871,1772785832449,-158.294575,2.888e-05,2]
[407770872,1772785832458,-158.294575,3.129e-05,2]
[407770873,1772785832468,-158.294575,3.261e-05,2]
[407770874,1772785832477,-158.294575,3.392e-05,2]
[407770875,1772785832487,-629.7878946,3.4e-05,2]
[407770876,1772785832499,-140.04804929,3.4e-05,2]
[407770877,1772785832508,-406.06568952,3.4e-05,2]
[407770878,1772785832517,-104.86963067,3.473e-05,2]
[407770879,1772785832529,-395.13036933,3.473e-05,2]
[407770880,1772785832539,-500.0,3.473e-05,2]
[407770881,1772785832548,-500.0,3.473e-05,2]
[407770882,1772785832557,-500.0,3.473e-05,2]
[407770883,1772785832566,-500.0,3.473e-05,2]
[407770884,1772785832575,-500.0,3.473e-05,2]
[407770885,1772785832584,-500.0,3.473e-05,2]
[407770886,1772785832593,-500.0,3.473e-05,2]
[407770887,1772785832602,-500.0,3.473e-05,2]
[407770888,1772785832611,-500.0,3.473e-05,2]
[407770889,1772785832621,-500.0,3.473e-05,2]
[407770890,1772785832630,-332.77302874,3.473e-05,2]
[407770918,1772785838455,-12622.56534081,3.438e-05,2]
[407770920,1772785838465,-167.22697126,3.473e-05,2]
[407770922,1772785838475,-551.48863943,3.473e-05,2]
[407770924,1772785838484,-500.0,3.473e-05,2]
[407770926,1772785838494,-500.0,3.473e-05,2]
[407770928,1772785838503,-500.0,3.473e-05,2]
[407770930,1772785838512,-500.0,3.473e-05,2]
[407770932,1772785838522,-403.84973012,3.473e-05,2]
[407770934,1772785838531,-500.0,3.473e-05,2]
[407770936,1772785838541,-500.0,3.473e-05,2]
[407770938,1772785838550,-500.0,3.473e-05,2]
[407770940,1772785838559,-500.0,3.473e-05,2]
[407770942,1772785838569,-500.0,3.473e-05,2]
[407770944,1772785838578,-500.0,3.473e-05,2]
[407770946,1772785838587,-500.0,3.473e-05,2]
[407770948,1772785838596,-500.0,3.473e-05,2]
[407770949,1772785838606,-500.0,3.473e-05,2]
[407770950,1772785838615,-500.0,3.473e-05,2]
[407770952,1772785838626,-500.0,3.473e-05,2]
[407770954,1772785838636,-500.0,3.473e-05,2]
[407770956,1772785838646,-500.0,3.473e-05,2]